Cogmind - Beta 15 @@@ ROGUE MODE // 2025.10.13 @ 19:15:41 Player: NQH Result: Destroyed by Y-45 Defender with Beam Rifle Performance ------------- Evolutions (2) 1000 Regions Visited (3) 600 Robots Destroyed (105) 525 Value Destroyed (2131) 2131 Prototype IDs (4) 80 Alien Tech Used (0) 0 Bonus (0) 0 TOTAL SCORE: 4336 Bonus ------- None Cogmind --------- Core Integrity 0/550 Matter 300/300 Energy 99/100 System Corruption 4% Temperature Cool (29) Movement Flying (37) Location -8/Materials Parts ------- > --- POWER (2) -------- (None) > --- PROPULSION (2) --- Xenon Bombardment Thruster Xenon Bombardment Thruster > --- UTILITY (5) ------ Machine Analyzer Advanced Visual Processing Unit Improved Signal Interpreter Transport Network Coupler Melee Analysis Suite > --- WEAPON (2) ------- Chainsword > --- INVENTORY (5) ---- Armored Huge Wheel Improved Datajack Chainsword Chainsword Peak State ------------ > --- POWER ------------ Light Nuclear Core Light Angular Momentum Engine > --- PROPULSION ------- Improved Flight Unit Improved Flight Unit > --- UTILITY ---------- Advanced Weight Redist. System Machine Analyzer Advanced Visual Processing Unit Transport Network Coupler ECM Suite > --- WEAPON ----------- Chainsword Chainsword > --- INVENTORY -------- Armored Huge Wheel Improved Flight Unit Datajack Chainsword [Rating: 34] Favorites ----------- Power Light Nuclear Core Engine Ion Engine Power Core Light Nuclear Core Propulsion Wheel Wheel Wheel Hover Unit Aerolev Unit Flight Unit Improved Flight Unit Utility Improved Terrain Scan Processor Device Structural Scanner Storage Small Storage Unit Processor Improved Terrain Scan Processor Protection Power Shielding Weapon Heavy Assault Rifle Energy Gun Beam Rifle Ballistic Gun Heavy Assault Rifle Impact Weapon Mace Slashing Weapon Chainsword Special Melee Weapon Datajack Build | -11 -10 -9 -8 ------- Run | Yrd Mat Mat Mat Slots Evolved 4 | . . 2 2 Power 1 | . . . 1 Propulsion . | . . . . Utility 3 | . . 2 1 Weapon . | . . . . Parts Attached 85 | 7 10 21 47 Power 15 | 1 1 2 11 Engine 8 | 1 . 2 5 Core 7 | . 1 . 6 Reactor . | . . . . Propulsion 26 | 2 2 8 14 Treads . | . . . . Leg . | . . . . Wheel 17 | 2 2 8 5 Hover 1 | . . . 1 Flight 8 | . . . 8 Utility 23 | 1 2 4 16 Device 8 | . 2 2 4 Storage 1 | 1 . . . Processor 12 | . . 1 11 Hackware . | . . . . Protection 2 | . . 1 1 Artifact . | . . . . Weapon 21 | 3 5 7 6 Energy Gun 3 | 2 . . 1 Energy Cannon . | . . . . Ballistic Gun 13 | 1 5 6 1 Ballistic Cannon . | . . . . Launcher . | . . . . Special Weapon . | . . . . Impact Weapon 1 | . . 1 . Slashing Weapon 3 | . . . 3 Piercing Weapon . | . . . . Special Melee Weapon 1 | . . . 1 Unidentified Prototypes 4 | . . . 4 Corrupted Parts 1 | . . . 1 System Corruption 3 | . . . 3 Parts Lost 24 | . 2 8 14 Power 6 | . . 1 5 Propulsion 8 | . 1 4 3 Utility 4 | . 1 . 3 Weapon 6 | . . 3 3 Highest Loss Streak 4 | . 2 3 4 To Critical Strikes 1 | . . . 1 Average Backups 5 | . 7 5 4 Power . | . . . . Propulsion . | . . . . Utility 1 | . 1 1 . Weapon 2 | . 5 2 1 Tool/Special . | . . . . Unused Backups 5 | . 2 . 3 Power 1 | . 1 . . Propulsion 1 | . . . 1 Utility 1 | . 1 . . Weapon 1 | . . . 1 Tool/Special 1 | . . . 1 Average Slot Usage (%) 89 | . 93 94 83 Engine 5 | . 10 6 2 Core 6 | . 3 4 8 Wheel 15 | . 27 19 5 Flight 4 | . . . 10 Device 7 | . 10 9 6 Storage 6 | . 14 11 . Processor 18 | . . 10 34 Protection 4 | . . 11 2 Ballistic Gun 14 | . 26 21 3 Slashing Weapon 3 | . . . 7 Peak Build Rating 34 | 5 12 15 34 Average Rating 17 | 2 9 12 25 On Entrance 7 | . 5 12 12 Naked Turns . | . . . . Heaviest Build 22 | 11 17 18 22 Greatest Support 32 | 20 20 32 32 Greatest Overweight (x) 4 | . 1 4 4 Average Overweight (x) . | . . . . Largest Inventory Capacity 8 | 8 8 8 8 Average Capacity 6 | 5 8 8 5 Most Carried 8 | 1 8 8 8 Average Carried 5 | . 7 5 4 Final Capacity 8 | 8 8 8 5 Final Carried 8 | . 8 8 5 Class Distribution -------------------- 67% | Mutant 26% | Scavenger-Mutant 6% | Sprinter Dominant Class ---------------- Mutant | -10/Materials Scavenger-Mutant | -9/Materials Mutant | -8/Materials Resources | -11 -10 -9 -8 ----------- Run | Yrd Mat Mat Mat Matter Collected 2049 | 232 407 720 690 Remotely . | . . . . Salvage Created 3166 | . 522 889 1755 Parts 220 | . 44 75 101 Haulers Intercepted 3 | . 1 . 2 Recyclers Shooed 3 | . 1 . 2 Parts Field Recycled . | . . . . Retrieved Matter . | . . . . Parts Self-Destructed . | . . . . Prevented . | . . . . Kills | -11 -10 -9 -8 ------- Run | Yrd Mat Mat Mat Combat Hostiles Destroyed 62 | . 13 20 29 Melee 19 | . . . 19 Guns 39 | . 13 20 6 Classes Destroyed 10 | . 6 2 2 Worker 15 | . 3 5 7 Builder 8 | . 1 1 6 Tunneler 2 | . . . 2 Hauler 3 | . 1 . 2 Recycler 6 | . . 1 5 Mechanic 1 | . . . 1 Watcher 8 | . 2 2 4 Swarmer 25 | . 6 4 15 Grunt 27 | . 7 10 10 Sentry 10 | . . 6 4 Best Kill Streak 9 | . 4 8 9 Combat Bots Only 7 | . 4 7 4 Max Kills in Single Turn 2 | . 2 2 1 Gunslinging 1 | . 1 . . Exploded . | . . . . Melee 1 | . . . 1 Uniques/NPCs Destroyed . | . . . . Combat | -11 -10 -9 -8 -------- Run | Yrd Mat Mat Mat Hostile Shots Fired 367 | . 61 105 201 Missed 84 | . 12 18 54 Hits 283 | . 49 87 147 Projectile 283 | . 49 87 147 Critical Strikes 18 | . 2 4 12 Damage Taken 3530 | . 592 1145 1793 Core 972 | . 138 274 560 Absorbed by Shields . | . . . . Redirected to Shielding 40 | . . 40 . Core Remaining (%) 58 | 100 44 31 . Volleys Fired 153 | . 46 71 36 Largest 2 | . 2 2 2 Hottest 76 | . 46 46 76 Shots Fired 295 | . 92 140 63 Gun 295 | . 92 140 63 Cannon . | . . . . Launcher . | . . . . Special . | . . . . Kinetic 287 | . 92 140 55 Thermal 8 | . . . 8 Explosive . | . . . . Electromagnetic . | . . . . Robot Hit Streak 22 | . 7 22 18 Robot Miss Streak 5 | . 5 5 2 Penetration Max . | . . . . Secondary Targets 4 | . 3 1 . Max Gunslinging Chain 1 | . 1 1 . Shots Hit Robots 286 | . 53 106 127 Core Hits 139 | . 24 57 58 Critical Kills 1 | . 1 . . Critical Parts Destroyed 3 | . . 1 2 Critical Strikes 10 | . 1 1 8 Destroy 2 | . 1 1 . Smash 2 | . . . 2 Sever 6 | . . . 6 Melee Attacks 125 | . . 2 123 Impact 35 | . . 2 33 Slashing 89 | . . . 89 Piercing . | . . . . Sneak Attacks 23 | . . . 23 Combat Hostiles 1 | . . . 1 Follow-up Attacks 6 | . . . 6 Damage Inflicted 6581 | . 799 1728 4054 Guns 2906 | . 799 1713 394 Cannons . | . . . . Explosions . | . . . . Melee 3660 | . . . 3660 Ramming 15 | . . 15 . Kinetic 2848 | . 799 1713 336 Thermal 58 | . . . 58 Explosive . | . . . . Electromagnetic . | . . . . Impact 851 | . . . 851 Slashing 2809 | . . . 2809 Piercing . | . . . . Highest Corruption 4 | . . . 4 Average Corruption 3 | . . . 3 Corruption Purged . | . . . . Corruption Blocked . | . . . . Effects 30 | . . . 30 Message Errors 11 | . . . 11 Matter Fused 6 | . . . 6 Heat Flow Errors 1 | . . . 1 Energy Discharges 6 | . . . 6 Parts Rejected 1 | . . . 1 Data Loss (minor) 2 | . . . 2 Data Loss (major) 3 | . . . 3 Overload Shots . | . . . . Overflow Damage 543 | . . . 543 Projectiles . | . . . . Explosions . | . . . . Melee 543 | . . . 543 Knockbacks 4 | . . . 4 Impact 4 | . . . 4 Kinetic . | . . . . Secondary . | . . . . Self-Inflicted Damage 7 | . . 7 . Shots . | . . . . Rammed 4 | . . 4 . Targets Rammed 4 | . . 4 . Kicked . | . . . . Crushed . | . . . . Highest Temperature 209 | . 22 21 209 Average Temperature 49 | . 6 5 76 Received Heat Transfer 1500 | . 219 498 783 Siege Activations . | . . . . Martial Activations . | . . . . Shielding Activations . | . . . . Robots Disrupted . | . . . . Combat Hostiles . | . . . . Robots Corrupted 9 | . . . 9 Combat Hostiles 4 | . . . 4 Parts Fried 18 | . . . 18 Impact Corruptions 17 | . . . 17 Robots Melted . | . . . . Combat Hostiles . | . . . . Parts Melted . | . . . . Heat Transferred 148 | . . . 148 Parts Sabotaged . | . . . . Parts Stolen . | . . . . Parts Stripped . | . . . . Power Chain Reactions . | . . . . Alert | -11 -10 -9 -8 ------- Run | Yrd Mat Mat Mat Maximum Alert Level 2 | . 1 1 2 Low Security (%) 80 | 100 97 81 68 Level 1 15 | . 2 18 21 Level 2 4 | . . . 9 Level 3 . | . . . . Level 4 . | . . . . Level 5 . | . . . . High Security . | . . . . Max Security . | . . . . Peak Influence 460 | . 202 220 460 Initial 76 | . . 53 76 Average 128 | . 107 130 144 Influence Increases 2231 | . 453 584 1194 Destroy 0b10 Robot/C 1240 | . 260 400 580 Destroy 0b10 Robot/NC 215 | . 35 45 135 Destroy Leader 322 | . 66 124 132 Successful Hack 2 | . . . 2 Disable Machine 60 | . 15 15 30 Destroy Structure 2 | . 2 . . Partial Spotted 45 | . . . 45 Lose Combat Pursuer 345 | . 75 . 270 Influence Decreases 1793 | . 326 529 938 Entered New Map 180 | . . 74 106 Time Decay 1237 | . 306 385 546 Lost Part 226 | . 20 70 136 Purge Threat 150 | . . . 150 Squads Dispatched 11 | . 2 5 4 Investigation 6 | . 1 3 2 Extermination . | . . . . Reinforcement 5 | . 1 2 2 Assault . | . . . . Garrison . | . . . . Intercept . | . . . . Searches Triggered . | . . . . Construction Impeded . | . . . . Haulers Reinforced . | . . . . Active Scanning Responses . | . . . . Cargo Convoy Interrupts . | . . . . Stealth | -11 -10 -9 -8 --------- Run | Yrd Mat Mat Mat Distress Signals 8 | . 2 3 3 Communications Jammed . | . . . . Distress Signals . | . . . . Times Spotted 125 | . 23 33 69 Peak Tracking Total 7 | . 4 7 7 Tactical Retreats 14 | . 3 . 11 Traps | -11 -10 -9 -8 ------- Run | Yrd Mat Mat Mat Traps Triggered 5 | . 3 2 . Indirectly . | . . . . Trap Hack Attempts . | . . . . Triggered . | . . . . Disarmed . | . . . . Reprogrammed . | . . . . Reused . | . . . . Traps Extracted . | . . . . Installed . | . . . . Triggered . | . . . . Machines | -11 -10 -9 -8 ---------- Run | Yrd Mat Mat Mat Machines Disabled 4 | . 1 1 2 Max in Single Turn 1 | . 1 1 1 Machines Repaired . | . . . . Machines Dismantled . | . . . . Machines Sabotaged . | . . . . Overloaded Fab Kills . | . . . . Hacking | -11 -10 -9 -8 --------- Run | Yrd Mat Mat Mat Machines Accessed 6 | . . 1 5 Terminals 3 | . . 1 2 Fabricators . | . . . . Repair Stations . | . . . . Recycling Units . | . . . . Scanalyzers 2 | . . . 2 Garrison Access 1 | . . . 1 Total Hacks 17 | . . 1 16 Successful 13 | . . . 13 Failed 4 | . . 1 3 Catastrophic 2 | . . 1 1 Database Lockouts . | . . . . Manual 4 | . . 2 2 Terminals 5 | . . 1 4 Fabricators . | . . . . Repair Stations . | . . . . Recycling Units . | . . . . Scanalyzers 11 | . . . 11 Garrison Access 1 | . . . 1 Terminal Hacks 2 | . . . 2 Alert Level 1 | . . . 1 Unreport Threat 1 | . . . 1 Fabricator Hacks . | . . . . Repair Station Hacks . | . . . . Recycling Unit Hacks . | . . . . Scanalyzer 10 | . . . 10 Insert Component 5 | . . . 5 Analyze 5 | . . . 5 Garrison Access Hacks 1 | . . . 1 Unlock Access 1 | . . . 1 Unauthorized Hacks . | . . . . Terminals . | . . . . Fabricators . | . . . . Repair Stations . | . . . . Recycling Units . | . . . . Scanalyzers . | . . . . Garrison Access . | . . . . Data Cores Recovered . | . . . . Used . | . . . . Hacking Detections 5 | . . 1 4 Full Trace Events 3 | . . 1 2 Feedback Events 1 | . . . 1 Corruption 1 | . . . 1 Feedback Blocked . | . . . . Robot Schematics Acquired . | . . . . Robots Built . | . . . . Authchips . | . . . . Time . | . . . . Total Robot Build Rating . | . . . . Part Schematics Acquired 4 | . . . 4 Parts Built . | . . . . Authchips . | . . . . Time . | . . . . Total Part Build Rating . | . . . . Parts Repaired . | . . . . Time . | . . . . Parts Recycled . | . . . . Recycled Matter . | . . . . Retrieved Matter . | . . . . Retrieved Components . | . . . . Parts Scanalyzed 5 | . . . 5 Part Schematics Acquired 4 | . . . 4 Parts Damaged . | . . . . Bothacking | -11 -10 -9 -8 ------------ Run | Yrd Mat Mat Mat Used RIF Installer . | . . . . Robots Hacked . | . . . . Non-combat . | . . . . Combat . | . . . . Robot Hacks Applied . | . . . . Relay Couplers Released . | . . . . Fabnet Peak Effective % . | . . . . Robots Rewired . | . . . . Allies Hacked . | . . . . Hacks Repelled . | . . . . Allies | -11 -10 -9 -8 -------- Run | Yrd Mat Mat Mat Total Allies . | . . . . Largest Group . | . . . . Highest-Rated Group . | . . . . Highest-Rated Ally . | . . . . Total Orders . | . . . . Ally Attacks . | . . . . Total Damage . | . . . . Kills . | . . . . Allies Corrupted . | . . . . Allies Melted . | . . . . Intel | -11 -10 -9 -8 ------- Run | Yrd Mat Mat Mat Active Infowar (turns) 2756 | . 663 924 1169 Optics 1974 | . . 912 1062 Terrain 98 | . . . 98 Structural 1336 | . 663 673 . T.N.C. 951 | . . . 951 Machine Analysis 732 | . . . 732 ECM 551 | . . . 551 Robot Analysis Total . | . . . . Derelict Logs Recovered . | . . . . Drone Launches . | . . . . Drone Recoveries . | . . . . Exploration | -11 -10 -9 -8 ------------- Run | Yrd Mat Mat Mat Turns Passed 3459 | 61 914 924 1560 Spaces Moved 3712 | 77 910 681 2044 Core 71 | 42 . 1 28 Treads . | . . . . Legs . | . . . . Wheels 1930 | 35 910 680 305 Hover . | . . . . Flight 1711 | . . . 1711 Fastest Speed 32 | 50 80 80 32 Average Speed 63 | 63 80 88 47 Slowest Speed 250 | 80 95 250 250 Overloaded Moves . | . . . . Propulsion Burnouts . | . . . . Robots Hopped 8 | . . . 8 Potential Cave-ins . | . . . . Cave-ins Triggered . | . . . . Exploration Rate (%) 54 | 4 83 43 88 Regions Visited 3 Branch Regions . Pre-discovered Areas . | . . . . Known Exits Taken . | . . . . Unknown Exits Taken 3 | 1 1 1 . Scrap Searched . | . . . . Spaces Dug . | . . . . Terrain Destroyed . | . . . . Melee . | . . . . Projectile . | . . . . AOE . | . . . . Terrain Rammed . | . . . . Walls Destroyed . | . . . . Machines Disabled . | . . . . Actions | -11 -10 -9 -8 --------- Run | Yrd Mat Mat Mat Total 4334 | 87 1005 860 2382 Wait 146 | . 18 52 76 Move 3694 | 76 909 680 2029 Hop 7 | . . . 7 Pick Up 34 | . 15 11 8 Fast Attach 54 | 7 2 4 41 Attach 24 | . 3 12 9 Detach 14 | 2 . 1 11 Swap 29 | . 5 11 13 Drop 58 | 2 7 12 37 Fire 153 | . 46 71 36 Melee 117 | . . 2 115 Ram 4 | . . 4 . Kick . | . . . . Crush . | . . . . Escape Stasis . | . . . . Rewire . | . . . . Trap . | . . . . Miscellaneous . | . . . . Route ------- -11/Scrapyard -10/Materials (discovered 3 exits: *Mat x2 / [*Min]) -9/Materials (discovered 3 exits: *Mat x2 / [*Min]) -8/Materials (discovered 1 exit: Gar) History --------- Turn | Location | Event 6 | -11/Scrapyard | Discovered new exit (range 15) 62 | -11/Scrapyard | Entered Materials 306 | -10/Materials | Build established: Mutant 343 | -10/Materials | Discovered new exit (range 16) 588 | -10/Materials | Discovered new exit (range 13) 594 | -10/Materials | Core integrity fell below 50% 948 | -10/Materials | Discovered new exit (range 10) 976 | -10/Materials | Entered another Materials area 976 | -9/Materials | Evolved 2 slots: Utility x2 1003 | -9/Materials | Discovered new exit (range 18) 1188 | -9/Materials | Destroyed 7 combat bots 1398 | -9/Materials | Lost 3 parts (1p1n1w) 1475 | -9/Materials | Discovered new exit (range 5) 1540 | -9/Materials | Discovered new exit (range 18) 1571 | -9/Materials | Core integrity fell below 50% 1755 | -9/Materials | Build established: Scavenger-Mutant 1900 | -9/Materials | Entered another Materials area 1900 | -8/Materials | Evolved 2 slots: Power x1, Utility x1 2071 | -8/Materials | Lost 3 parts (2n1u) 2222 | -8/Materials | Lost 4 parts (2p2w) 2644 | -8/Materials | Build established: Mutant 2777 | -8/Materials | Core integrity fell below 50% 2911 | -8/Materials | Core integrity fell below 20% 3154 | -8/Materials | Identified exit to Garrison 3460 | -8/Materials | Destroyed by Y-45 Defender with Beam Rifle Last Messages --------------- 03283_ Imp. Signal Interpreter tumbles out of TF Node. 03287_ Dropped Imp. VTOL Module. 03290_ Acquired Xenon Bombardment Thruster. 03324_ Acquired 20 matter. 03341_ RWT&TYBNN<0SU 7U,LS#C 03360_ System corrupted: Substantial component data lost. 03363_ >> Machine Analyzer network decryption results: 03363_ Terminal x1 03375_ O-16 Technician: "IFF HANDSHAKE FAILED. SECURING TERMINAL." 03375_ O-16 Technician uses terminal to summon reinforcements. 03375_ ALERT: Hostiles spotted, dispatching reinforcements to Terminal M002. 03375_ O-16 Technician locks terminal. 03454_ Nuclear Core destroyed. 03460_ Critical hit (Burn: +37). Map ----- +----------------------------------------------------+ | | | | | | | | | | | | | | | | | | | | | | | | | | | | | | | | | | | | | | | ?????????????????????????????????????????????????? | | ?????????????????????????????????????????????????? | | ???????????????????######?????????################ | | ???????????????????# ########## # | | ??????????########## ! # | | ?????????? Y # | | ???????????????????# @ k # | | ???????????????????# ]########## # | | ???????????????????## #?????????## ######%= | | ????????????????????# ????######## #????# | | ????????????????????# ?????# # #????# | | ????????????????????# ??????# """ # #????#%[ | | ????????????"""?"""?#???????# """ # ####????#* | | ????????????"""?"""?????????#! """ ##+###??????# | | ????????????"""?"""?????????# ## #??????# | | ????????????????????????????# ## #?"""??# | | ????????????????????????????######+## #?"""??# | | ????????????????????????????# ## #?"""??# | | ????????????????????????????# ####### #??????# # | | ????????????????????????????# #?????# #??????# # | | ????????????????????????????# #?????# % ####+### # | | #############################%########+### # | | = # | | # | | # | | ## ####################################### # | | ##+####??????????????????????????????????### + | | #????????????????????????????????????# # | | ! ###################################### # | | + = [ = [ = # # # | | / * ###+#######+###########+##+#### # # # | +----------------------------------------------------+ Best States ------------- Heat Dissipation 31 Energy Generation 27 Energy Capacity 310 Matter Stores 300 Matter Capacity 300 Sight Range 20 Terrain Scan Range 14 Terrain Scan Density 410 ECM Strength 1 Additional Mass Support 9 Armor Coverage 150 Power Shielding 33 Evasion (%) 63 Melee Accuracy 5 Recoil Reduction 4 Item Schematics ----------------- Imp. Terrain Scan Processor | -8/Materials | Scanalyzed Datajack | -8/Materials | Scanalyzed Chainsword | -8/Materials | Scanalyzed Imp. Datajack | -8/Materials | Scanalyzed Robot Schematics ------------------ None Fabricated ------------ Nothing Repaired ---------- Nothing Alien Tech Used ----------------- None Achievements -------------- None Challenges ------------ None Game ------ Seed AntimatterTowerInterrupter Manual? 0 Play Time 00:35:00 Cumulative 30.8 hours Start 2025.10.13 @ 17:10:28 End 2025.10.13 @ 19:15:41 Sessions 1 Manual Loads 0 Difficulty Rogue Special Mode None Game No. 120 Rogue 120 Adventurer 0 Explorer 0 Win Type - Total 0 Types 0/0/0/0/0/0/0/0/0/0 Lore% 11 Gallery% 30 Achievement% 27 Wizard Run 0 Options --------- Layout 1 ASCII 0 Keyboard 1 Movement Vi Keybinds 0 Fullscreen 1 Font 16/SmallcapsGlow Map View 55x38 Zoom Use 0% Tactical HUD 1 Map Filters NONE Filters NONE Steam 1 RUN: 9e11f358-035b-4fae-bc46-c8c4ec4f9ebe